Cogmind - Beta 13 @@@ ROGUE MODE // 2024.05.27 @ 18:29:52 // Winter2022/Polymind Player: Phosphorus Result: Destroyed by G-47 Trooper with Particle Gun Performance ------------- Evolutions (2) 1000 Regions Visited (7) 1400 Robots Destroyed (1) 5 Value Destroyed (1) 1 Prototype IDs (0) 0 Alien Tech Used (0) 0 Bonus (3477) 3477 TOTAL SCORE: 5593 Bonus ------- Polymind Skill 3077 Pacifist 200 Entered Garrisons 200 Cogmind --------- Core Integrity 0/550 Matter 0/0 Energy 16/100 System Corruption 0% Temperature Cool (9) Movement Core (50) Location -8/Materials Parts ------- > --- POWER (1) -------- (None) > --- PROPULSION (2) --- (None) > --- UTILITY (1) ------ (None) > --- WEAPON (1) ------- (None) > --- INVENTORY (0) ---- (None) Peak State ------------ > --- POWER ------------ Light Ion Engine > --- PROPULSION ------- Hover Unit Hover Unit > --- UTILITY ---------- Hacking Suite > --- WEAPON ----------- Datajack > --- INVENTORY -------- (None) [Rating: 7] Favorites ----------- Power Light Ion Engine Engine Light Ion Engine Propulsion Flight Unit Wheel Compact Wheel Hover Unit Hover Unit Flight Unit Flight Unit Utility Small Storage Unit Device Tractor Beam Storage Small Storage Unit Hackware Hacking Suite Weapon Light Assault Rifle Ballistic Gun Light Assault Rifle Special Melee Weapon Datajack Build | -11 -10 -10 -9 -9 -8 -8 -8 ------- Run | Yrd Mat Min Mat Min Mat Gar Mat Slots Evolved . | . . . . . . . . Power . | . . . . . . . . Propulsion . | . . . . . . . . Utility . | . . . . . . . . Weapon . | . . . . . . . . Parts Attached . | . . . . . . . . Power . | . . . . . . . . Engine . | . . . . . . . . Core . | . . . . . . . . Reactor . | . . . . . . . . Propulsion . | . . . . . . . . Treads . | . . . . . . . . Leg . | . . . . . . . . Wheel . | . . . . . . . . Hover . | . . . . . . . . Flight . | . . . . . . . . Utility . | . . . . . . . . Device . | . . . . . . . . Storage . | . . . . . . . . Processor . | . . . . . . . . Hackware . | . . . . . . . . Protection . | . . . . . . . . Artifact . | . . . . . . . . Weapon . | . . . . . . . . Energy Gun . | . . . . . . . . Energy Cannon . | . . . . . . . . Ballistic Gun . | . . . . . . . . Ballistic Cannon . | . . . . . . . . Launcher . | . . . . . . . . Special Weapon . | . . . . . . . . Impact Weapon . | . . . . . . . . Slashing Weapon . | . . . . . . . . Piercing Weapon . | . . . . . . . . Special Melee Weapon . | . . . . . . . . Unidentified Prototypes . | . . . . . . . . Parts Lost 12 | . . . 4 2 . 2 4 Power 3 | . . . 1 1 . . 1 Propulsion 6 | . . . 2 1 . 1 2 Utility 2 | . . . 1 . . . 1 Weapon 1 | . . . . . . 1 . Highest Loss Streak 4 | . . . 4 2 . 2 4 To Critical Strikes . | . . . . . . . . Average Slot Usage (%) 79 | . 100 100 80 84 50 38 64 Engine 15 | . 20 20 17 17 . . 16 Wheel 15 | . 33 . 21 . . . 30 Hover 6 | . 6 40 13 . . . . Flight 13 | . . . 3 42 25 19 . Device 4 | . 16 . . . . . . Storage 8 | . 16 . 9 . . . 18 Hackware 3 | . 3 20 6 . . . . Ballistic Gun 9 | . . . 1 25 25 19 . Special Melee Weapon 3 | . 3 20 6 . . . . Naked Turns 42 | . 3 . 1 . . 27 11 Heaviest Build 9 | 9 9 4 5 4 1 1 4 Greatest Support 32 | 32 32 12 20 8 4 4 20 Greatest Overweight (x) . | . . . . . . . . Average Overweight (x) . | . . . . . . . . Largest Inventory Capacity 4 | 4 4 1 1 . . . 1 Average Capacity 1 | 1 3 1 . . . . . Most Carried 4 | . 4 . . . . . . Average Carried . | . 1 . . . . . . Final Capacity 4 | 4 1 1 . . . . . Final Carried . | . . . . . . . . Class Distribution -------------------- 37% | Swarmer 22% | Recycler 19% | Worker 15% | Operator 4% | Cogmind Dominant Class ---------------- Recycler | -10/Materials Operator | -10/Mines Worker | -9/Materials Swarmer | -9/Mines Swarmer | -8/Materials Swarmer | -8/Garrison Worker | -8/Materials Resources | -11 -10 -10 -9 -9 -8 -8 -8 ----------- Run | Yrd Mat Min Mat Min Mat Gar Mat Matter Collected 7 | . . . . 7 . . . Remotely . | . . . . . . . . Salvage Created 25 | . . . . 25 . . . Parts 3 | . . . . 3 . . . Haulers Intercepted . | . . . . . . . . Recyclers Shooed . | . . . . . . . . Parts Field Recycled . | . . . . . . . . Retrieved Matter . | . . . . . . . . Parts Self-Destructed . | . . . . . . . . Prevented . | . . . . . . . . Kills | -11 -10 -10 -9 -9 -8 -8 -8 ------- Run | Yrd Mat Min Mat Min Mat Gar Mat Combat Hostiles Destroyed . | . . . . . . . . Classes Destroyed 1 | . . . . 1 . . . Worker 1 | . . . . 1 . . . Best Kill Streak 1 | . . . . 1 . . . Combat Bots Only . | . . . . . . . . Max Kills in Single Turn 1 | . . . . 1 . . . Gunslinging . | . . . . . . . . Exploded . | . . . . . . . . Melee . | . . . . . . . . Uniques/NPCs Destroyed . | . . . . . . . . Combat | -11 -10 -10 -9 -9 -8 -8 -8 -------- Run | Yrd Mat Min Mat Min Mat Gar Mat Hostile Shots Fired 220 | . . . 58 46 . 84 32 Missed 101 | . . . 25 31 . 32 13 Damage Taken 1285 | . . . 352 123 . 510 300 Core 789 | . . . 176 46 . 423 144 Absorbed by Shields 115 | . . . . . . 115 . Core Remaining (%) 81 | 100 . 100 . 44 . . . Volleys Fired 6 | . . . . 6 . . . Largest 1 | . . . . 1 . . . Hottest 20 | . . . . 20 . . . Shots Fired 6 | . . . . 6 . . . Gun 6 | . . . . 6 . . . Cannon . | . . . . . . . . Launcher . | . . . . . . . . Special . | . . . . . . . . Kinetic 6 | . . . . 6 . . . Thermal . | . . . . . . . . Explosive . | . . . . . . . . Electromagnetic . | . . . . . . . . Robot Hit Streak 4 | . . . . 4 . . . Robot Miss Streak 1 | . . . . 1 . . . Penetration Max . | . . . . . . . . Secondary Targets . | . . . . . . . . Shots Hit Robots 6 | . . . 1 5 . . . Core Hits 2 | . . . . 2 . . . Critical Kills . | . . . . . . . . Critical Parts Destroyed . | . . . . . . . . Critical Strikes . | . . . . . . . . Melee Attacks 1 | . . . 1 . . . . Impact . | . . . . . . . . Slashing . | . . . . . . . . Piercing . | . . . . . . . . Sneak Attacks 1 | . . . 1 . . . . Combat Hostiles . | . . . . . . . . Follow-up Attacks . | . . . . . . . . Damage Inflicted 44 | . . . . 42 . . 2 Guns 42 | . . . . 42 . . . Cannons . | . . . . . . . . Explosions . | . . . . . . . . Melee . | . . . . . . . . Ramming 2 | . . . . . . . 2 Kinetic 42 | . . . . 42 . . . Thermal . | . . . . . . . . Explosive . | . . . . . . . . Electromagnetic . | . . . . . . . . Impact . | . . . . . . . . Slashing . | . . . . . . . . Piercing . | . . . . . . . . Highest Corruption 1 | . . . 1 1 . . . Average Corruption 1 | . . . 1 1 . . . Corruption Purged . | . . . . . . . . Corruption Blocked . | . . . . . . . . Effects 1 | . . . 1 . . . . Data Loss (major) 1 | . . . 1 . . . . Overload Shots . | . . . . . . . . Overflow Damage . | . . . . . . . . Projectiles . | . . . . . . . . Explosions . | . . . . . . . . Melee . | . . . . . . . . Knockbacks . | . . . . . . . . Impact . | . . . . . . . . Kinetic . | . . . . . . . . Secondary . | . . . . . . . . Self-Inflicted Damage 1 | . . . . . . . 1 Shots . | . . . . . . . . Rammed 3 | . . . . . . . 3 Targets Rammed 3 | . . . . . . . 3 Kicked . | . . . . . . . . Crushed . | . . . . . . . . Highest Temperature 35 | . . . 35 18 . . 8 Average Temperature 11 | . . . 15 10 . . 4 Received Heat Transfer 525 | . . . 141 15 . 225 144 Siege Activations . | . . . . . . . . Robots Corrupted . | . . . . . . . . Combat Hostiles . | . . . . . . . . Parts Fried . | . . . . . . . . Impact Corruptions . | . . . . . . . . Robots Melted . | . . . . . . . . Combat Hostiles . | . . . . . . . . Parts Melted . | . . . . . . . . Heat Transferred . | . . . . . . . . Parts Sabotaged . | . . . . . . . . Parts Stolen . | . . . . . . . . Parts Stripped . | . . . . . . . . Power Chain Reactions . | . . . . . . . . Alert | -11 -10 -10 -9 -9 -8 -8 -8 ------- Run | Yrd Mat Min Mat Min Mat Gar Mat Peak Influence 350 | . 45 11 78 350 136 143 159 Initial 136 | . . 11 3 30 136 88 69 Average 75 | . . 11 24 178 136 99 115 Maximum Alert Level 1 | . . . . 1 . . . Low Security (%) 88 | 100 100 100 100 48 100 100 100 Level 1 11 | . . . . 51 . . . Level 2 . | . . . . . . . . Level 3 . | . . . . . . . . Level 4 . | . . . . . . . . Level 5 . | . . . . . . . . High Security . | . . . . . . . . Max Security . | . . . . . . . . Squads Dispatched 2 | . . . 1 . . . 1 Investigation 1 | . . . 1 . . . . Extermination . | . . . . . . . . Reinforcement 1 | . . . . . . . 1 Assault . | . . . . . . . . Garrison . | . . . . . . . . Intercept . | . . . . . . . . Searches Triggered . | . . . . . . . . Construction Impeded . | . . . . . . . . Haulers Reinforced . | . . . . . . . . Active Scanning Responses . | . . . . . . . . Cargo Convoy Interrupts . | . . . . . . . . Stealth | -11 -10 -10 -9 -9 -8 -8 -8 --------- Run | Yrd Mat Min Mat Min Mat Gar Mat Distress Signals 4 | . 1 . . . . . 3 Communications Jammed . | . . . . . . . . Distress Signals . | . . . . . . . . Times Spotted 73 | . 2 . 22 23 . 15 11 Peak Tracking Total 15 | . 1 . 10 7 . 15 11 Tactical Retreats 11 | . . . . 9 . 1 1 Traps | -11 -10 -10 -9 -9 -8 -8 -8 ------- Run | Yrd Mat Min Mat Min Mat Gar Mat Traps Triggered 2 | . . . . . . 2 . Indirectly . | . . . . . . . . Trap Hack Attempts 1 | . 1 . . . . . . Triggered . | . . . . . . . . Disarmed 1 | . 1 . . . . . . Reprogrammed . | . . . . . . . . Reused . | . . . . . . . . Traps Extracted . | . . . . . . . . Installed . | . . . . . . . . Triggered . | . . . . . . . . Machines | -11 -10 -10 -9 -9 -8 -8 -8 ---------- Run | Yrd Mat Min Mat Min Mat Gar Mat Machines Disabled . | . . . . . . . . Max in Single Turn . | . . . . . . . . Machines Repaired . | . . . . . . . . Machines Dismantled . | . . . . . . . . Machines Sabotaged . | . . . . . . . . Overloaded Fab Kills . | . . . . . . . . Hacking | -11 -10 -10 -9 -9 -8 -8 -8 --------- Run | Yrd Mat Min Mat Min Mat Gar Mat Machines Accessed 10 | . 3 . 3 1 1 1 1 Terminals 9 | . 3 . 3 1 . 1 1 Fabricators . | . . . . . . . . Repair Stations . | . . . . . . . . Recycling Units . | . . . . . . . . Scanalyzers . | . . . . . . . . Garrison Access 1 | . . . . . 1 . . Total Hacks 23 | . 8 . 7 2 1 2 3 Successful 7 | . 2 . 2 1 1 . 1 Failed 16 | . 6 . 5 1 . 2 2 Catastrophic 2 | . 1 . 1 . . . . Database Lockouts . | . . . . . . . . Manual 9 | . 2 . 7 . . . . Terminals 22 | . 8 . 7 2 . 2 3 Fabricators . | . . . . . . . . Repair Stations . | . . . . . . . . Recycling Units . | . . . . . . . . Scanalyzers . | . . . . . . . . Garrison Access 1 | . . . . . 1 . . Terminal Hacks 5 | . 2 . 1 1 . . 1 Branch Access Points 2 | . 1 . 1 . . . . Terminal Index 1 | . . . . . . . 1 Unreport Threat 1 | . 1 . . . . . . Zone Layout 1 | . . . . 1 . . . Fabricator Hacks . | . . . . . . . . Repair Station Hacks . | . . . . . . . . Recycling Unit Hacks . | . . . . . . . . Scanalyzer . | . . . . . . . . Garrison Access Hacks 1 | . . . . . 1 . . Unlock Access 1 | . . . . . 1 . . Unauthorized Hacks 1 | . . . 1 . . . . Terminals 1 | . . . 1 . . . . Botnet 1 | . . . 1 . . . . Fabricators . | . . . . . . . . Repair Stations . | . . . . . . . . Recycling Units . | . . . . . . . . Scanalyzers . | . . . . . . . . Garrison Access . | . . . . . . . . Data Cores Recovered . | . . . . . . . . Used . | . . . . . . . . Hacking Detections 8 | . 3 . 3 . . 1 1 Full Trace Events 1 | . . . 1 . . . . Feedback Events 1 | . . . 1 . . . . Corruption 1 | . . . 1 . . . . Feedback Blocked . | . . . . . . . . Robot Schematics Acquired . | . . . . . . . . Robots Built . | . . . . . . . . Authchips . | . . . . . . . . Time . | . . . . . . . . Total Robot Build Rating . | . . . . . . . . Part Schematics Acquired . | . . . . . . . . Parts Built . | . . . . . . . . Authchips . | . . . . . . . . Time . | . . . . . . . . Total Part Build Rating . | . . . . . . . . Parts Repaired . | . . . . . . . . Time . | . . . . . . . . Parts Recycled . | . . . . . . . . Recycled Matter . | . . . . . . . . Retrieved Matter . | . . . . . . . . Retrieved Components . | . . . . . . . . Parts Scanalyzed . | . . . . . . . . Part Schematics Acquired . | . . . . . . . . Parts Damaged . | . . . . . . . . Bothacking | -11 -10 -10 -9 -9 -8 -8 -8 ------------ Run | Yrd Mat Min Mat Min Mat Gar Mat Used RIF Installer . | . . . . . . . . Robots Hacked 3 | . 1 . 2 . . . . Non-combat 2 | . 1 . 1 . . . . Combat 1 | . . . 1 . . . . Robot Hacks Applied 3 | . 1 . 2 . . . . parse_system 1 | . . . 1 . . . . find_terminals 1 | . 1 . . . . . . find_shortcuts 1 | . . . 1 . . . . Relay Couplers Released . | . . . . . . . . Fabnet Peak Effective % . | . . . . . . . . Robots Rewired . | . . . . . . . . Allies Hacked . | . . . . . . . . Hacks Repelled . | . . . . . . . . Allies | -11 -10 -10 -9 -9 -8 -8 -8 -------- Run | Yrd Mat Min Mat Min Mat Gar Mat Total Allies . | . . . . . . . . Largest Group . | . . . . . . . . Highest-Rated Group . | . . . . . . . . Highest-Rated Ally . | . . . . . . . . Total Orders . | . . . . . . . . Ally Attacks . | . . . . . . . . Total Damage . | . . . . . . . . Kills . | . . . . . . . . Allies Corrupted . | . . . . . . . . Allies Melted . | . . . . . . . . Intel | -11 -10 -10 -9 -9 -8 -8 -8 ------- Run | Yrd Mat Min Mat Min Mat Gar Mat Robot Analysis Total 4 | 1 1 . 2 . . . . Derelict Logs Recovered 4 | . . 2 . 2 . . . Drone Launches . | . . . . . . . . Drone Recoveries . | . . . . . . . . Exploration | -11 -10 -10 -9 -9 -8 -8 -8 ------------- Run | Yrd Mat Min Mat Min Mat Gar Mat Turns Passed 936 | 13 246 50 155 217 23 128 104 Spaces Moved 1624 | 21 262 90 235 542 56 279 139 Core 101 | 16 4 . . . . 45 36 Treads . | . . . . . . . . Legs . | . . . . . . . . Wheels 420 | 5 202 . 110 . . . 103 Hover 246 | . 56 90 100 . . . . Flight 857 | . . . 25 542 56 234 . Fastest Speed 37 | 50 50 56 37 37 40 40 50 Average Speed 55 | 61 89 56 65 38 40 41 72 Slowest Speed 100 | 100 100 56 80 40 40 50 80 Overloaded Moves . | . . . . . . . . Propulsion Burnouts . | . . . . . . . . Robots Hopped 17 | . . . 3 13 . 1 . Cave-ins Triggered . | . . . . . . . . Exploration Rate (%) 36 | 3 53 33 30 96 11 38 29 Regions Visited 7 Branch Regions 2 Pre-discovered Areas 1 | . . 1 . . . . . Known Exits Taken 3 | . 1 . 1 . 1 . . Unknown Exits Taken 3 | 1 . 1 . 1 . . . Scrap Searched 4 | . . 2 . 2 . . . Spaces Dug . | . . . . . . . . Terrain Destroyed . | . . . . . . . . Melee . | . . . . . . . . Projectile . | . . . . . . . . AOE . | . . . . . . . . Terrain Rammed . | . . . . . . . . Walls Destroyed . | . . . . . . . . Machines Disabled . | . . . . . . . . Actions | -11 -10 -10 -9 -9 -8 -8 -8 --------- Run | Yrd Mat Min Mat Min Mat Gar Mat Total 1633 | 20 272 89 232 534 56 288 142 Wait . | . . . . . . . . Move 1585 | 20 261 89 229 517 56 274 139 Hop 14 | . . . 2 11 . 1 . Pick Up 6 | . 6 . . . . . . Fast Attach . | . . . . . . . . Attach . | . . . . . . . . Detach . | . . . . . . . . Swap . | . . . . . . . . Drop . | . . . . . . . . Fire 6 | . . . . 6 . . . Melee 1 | . . . 1 . . . . Ram 3 | . . . . . . . 3 Kick . | . . . . . . . . Crush . | . . . . . . . . Escape Stasis 13 | . . . . . . 13 . Rewire . | . . . . . . . . Trap 1 | . 1 . . . . . . Miscellaneous 4 | . 4 . . . . . . Route ------- -11/Scrapyard -10/Materials (discovered 2 exits: *Mat / *Min) -10/Mines -9/Materials -9/Mines (discovered 2 exits: *Mat x2) -8/Materials -8/Garrison (discovered 2 exits: *Mat x2) -8/Materials History --------- Turn | Location | Event 5 | -11/Scrapyard | Discovered new exit (range 15) 14 | -11/Scrapyard | Entered Materials 229 | -10/Materials | Discovered new exit (range 9) 230 | -10/Materials | Identified exit to Mines 260 | -10/Materials | Entered Mines 261 | -10/Mines | Learned location of Storage (-7) 302 | -10/Mines | Learned 2 Materials zone layouts 302 | -10/Mines | Discovered new exit (range 8) 308 | -10/Mines | Learned Materials garrison access intel 310 | -10/Mines | Entered Materials 414 | -9/Materials | Identified exit to Mines 465 | -9/Materials | Entered Mines 486 | -9/Mines | Lost 4 parts (1p2n1u) 574 | -9/Mines | Learned Materials security intel 611 | -9/Mines | Core integrity fell below 50% 634 | -9/Mines | Discovered new exit (range 14) 679 | -9/Mines | Discovered new exit (range 6) 682 | -9/Mines | Entered Materials 684 | -8/Materials | Loaded intel: 1 garrison access location 705 | -8/Materials | Identified exit to Garrison 705 | -8/Materials | Entered Garrison 729 | -8/Garrison | Triggered checkpoint 739 | -8/Garrison | Triggered checkpoint 755 | -8/Garrison | Discovered new exit (range 10) 758 | -8/Garrison | Attempted to access garrison exit controls, blocked by remote lockdown 771 | -8/Garrison | Triggered checkpoint 775 | -8/Garrison | Triggered checkpoint 813 | -8/Garrison | Core integrity fell below 50% 829 | -8/Garrison | Discovered new exit (range 10) 833 | -8/Garrison | Entered Materials 893 | -8/Materials | Core integrity fell below 20% 937 | -8/Materials | Destroyed by G-47 Trooper with Particle Gun Last Messages --------------- 00882_ O-16 Technician sends out distress signal. 00884_ Cleaned Terminal. 00888_ K-01 Serf collects debris. 00894_ ALERT: Hostiles spotted, dispatching reinforcements to Terminal M004. 00898_ K-01 Serf collects debris. 00901_ Collected debris. 00905_ T-07 Excavator is excavating. 00905_ W-25 Informer sends out distress signal. 00906_ Collected debris. 00909_ T-07 Excavator is excavating. 00915_ Wheel destroyed. 00918_ Collected debris. 00925_ Lgt. Ion Engine destroyed. 00926_ Slammed into R-06 Scavenger. 00927_ Wheel destroyed. 00929_ Cleaned Material Processor. 00929_ Collected debris. 00935_ Sml. Matter Pod destroyed. 00935_ Lost control of K-01 Serf. Map ----- +----------------------------------------------------+ | ??????????????????????????????????????????? | | ??????????????????????????????????????????? | | ??????????????????????????????????????????? | | ??????????????????????????????????????????? | | ??????????????????????????????????????????? | | ??????????????????????????????????????????? | | ??????????????????????????????????????????? | | ??????????????????????????????????????????? | | ??????????????????????????????????????????? | | ??????????????????????????????????????????? | | ??????????????????????????????????????????? | | ??????????????????????????????????????????? | | ??????????????????????????????????????????? | | ??????????????????????????????????????????? | | ??????????????????????????????????????????? | | ??????????????????????????????????????????? | | ?????????????????########?????????????????? | | ????????? ???????# #????????????????## | | ????????"" ""???# #??????????????### | | ????????"" ""???# """ #??????????????# #/ | | ?????? """ """??# """ #??????????????# | | ?????? kw ?# """ #??????????????### | | ?????? # #????????????????# | | ????????"" " ##+########?????????###?## | | ????????"" T rt ###########+#### | | ????????"" % " @ ga ugg/ ! # | | ????? g ###### / | | ????# #######+#+####?# # | | ????########## ???# #?# ! ! # | | ?????????????# ????# #?########### | | ?????????????# ????# """ #??????????? | | ?????????????# ?????# """"" #??????????? | | ?????????????# ?????# """"" #??????????? | | ?????????????#??????# """"" #??????????# | | ????????????????????# ?""" #??????????? | | ????????????????????#?????? #???????????# | | ???????????????????????????####???????????? | | ??????????????????????????????????????????? | | ??????????????????????????????????????????? | | ??????????????????????????????????????????? | | ??????????????????????????????????????????? | | ??????????????????????????????????????????? | | ??????????????????????????????????????????? | | ??????????????????????????????????????????? | | ??????????????????????????????????????????? | | ??????????????????????????????????????????? | | ??????????????????????????????????????????? | | ??????????????????????????????????????????? | | ??????????????????????????????????????????? | | ??????????????????????????????????????????? | +----------------------------------------------------+ Best States ------------- Heat Dissipation 25 Energy Generation 15 Energy Capacity 100 Matter Stores 100 Matter Capacity 125 Sight Range 16 Terrain Scan Density 10 Evasion (%) 62 Offensive Hacking 10 Item Schematics ----------------- None Robot Schematics ------------------ None Fabricated ------------ Nothing Alien Tech Used ----------------- None Achievements -------------- None Challenges ------------ None Polymind | -11 -10 -10 -9 -9 -8 -8 -8 ---------- Run | Yrd Mat Min Mat Min Mat Gar Mat Hosts 5 | 1 1 . 2 . . . 1 Combat Hostiles 1 | . . . 1 . . . . Allies . | . . . . . . . . Unique Host Classes 4 | 1 1 . 2 . . . . Average Host Suspicion 58 | . 17 17 63 95 10 65 98 Unsuspicious Activity 113 | 2 32 . 28 . . . 51 Returns to Shadow . | . . . . . . . . Fuzzy Dispatches . | . . . . . . . . Protomatter Created 34 | . . . 10 . . 24 . Used 26 | 5 5 . 11 . . . 5 Decayed 5 | . . . 5 . . . . Highest Spend 6 | 5 5 . 6 . . . 5 Game ------ Seed StasisThrusterMultitool Manual? 0 Play Time 00:15:03 Cumulative 140.5 hours Start 2024.05.27 @ 18:14:36 End 2024.05.27 @ 18:29:52 Sessions 1 Manual Loads 0 Difficulty Rogue Special Mode Winter2022/Polymind Game No. 74 Rogue 74 Adventurer 0 Explorer 0 Win Type - Total 5 Types 2/0/1/1/0/0/0/1/0 Lore% 81 Gallery% 74 Achievement% 62 Wizard Run 0 Options --------- Layout 0 ASCII 0 Keyboard 1 Movement Numpad Keybinds 0 Fullscreen 1 Font 18/SmallcapsGlow Map View 76x50 Zoom Use 0% Tactical HUD 1 Map Filters NONE Filters NONE Steam 1 RUN: 0c88c9c8-4177-4a00-aa11-850ea3b0e914